Cogmind - Beta 10.2 --- EXPLORER MODE // 2021.11.15 @ 18:11:54 // Winter2019/RPGLIKE Player: Storm Mk9 Result: Smashed by cave-in Performance ------------- Evolutions (2) 1000 Regions Visited (5) 1000 Robots Destroyed (60) 300 Value Destroyed (1734) 1734 Prototype IDs (25) 500 Alien Tech Used (0) 0 Bonus (373) 373 TOTAL SCORE: 4907 Bonus ------- High Alert Combat Kills 73 Aligned with FarCom 300 Cogmind --------- Core Integrity 0/700 Matter 816/900 Energy 398/405 System Corruption 0% Temperature Cool (113) Movement Treading (190) Ox1 Location -8/Materials Parts ------- > --- POWER (2) -------- Improved Ion Engine Nuclear Core > --- PROPULSION (2) --- Armored Treads Armored Treads > --- UTILITY (5) ------ High-capacity Matter Pod High-capacity Matter Pod High-capacity Matter Pod Light Armor Plating Field Recycling Unit > --- WEAPON (6) ------- Firepult Heavy Assault Rifle Heavy Assault Rifle Autogun Light Cannon > --- INVENTORY (0) ---- (None) Peak State ------------ > --- POWER ------------ Improved Ion Engine Nuclear Core > --- PROPULSION ------- Armored Treads Armored Treads > --- UTILITY ---------- High-capacity Matter Pod High-capacity Matter Pod High-capacity Matter Pod Light Armor Plating Field Recycling Unit > --- WEAPON ----------- Firepult Heavy Assault Rifle Heavy Assault Rifle Autogun Light Cannon > --- INVENTORY -------- (None) [Rating: 44] Favorites ----------- Power Ion Engine Engine Ion Engine Power Core Nuclear Core Propulsion Light Treads Treads Light Treads Utility Medium Matter Pod Device Field Recycling Unit Storage Medium Matter Pod Processor Targeting Computer Protection Power Shielding Weapon Light Cannon Energy Gun EM Pulse Gun Energy Cannon Light EM Pulse Cannon Ballistic Gun Light Assault Rifle Ballistic Cannon Light Cannon Build | -11 -10 -10 -10 -9 -8 ------- Run | Scr Mat Min Exi Min Mat Slots Evolved 11 | 6 . 1 . 1 3 Power 1 | 1 . . . . . Propulsion 1 | 1 . . . . . Utility 4 | 2 . 1 . 1 . Weapon 5 | 2 . . . . 3 Parts Attached 40 | 10 13 2 5 . 10 Power 6 | 2 1 . . . 3 Engine 5 | 2 1 . . . 2 Core 1 | . . . . . 1 Reactor . | . . . . . . Propulsion 4 | 2 . . . . 2 Treads 4 | 2 . . . . 2 Leg . | . . . . . . Wheel . | . . . . . . Hover . | . . . . . . Flight . | . . . . . . Utility 14 | 3 5 1 4 . 1 Device 1 | . 1 . . . . Storage 9 | . 4 1 4 . . Processor 1 | 1 . . . . . Hackware . | . . . . . . Protection 3 | 2 . . . . 1 Artifact . | . . . . . . Weapon 16 | 3 7 1 1 . 4 Energy Gun 2 | 2 . . . . . Energy Cannon 7 | . 5 . 1 . 1 Ballistic Gun 6 | 1 1 1 . . 3 Ballistic Cannon 1 | . 1 . . . . Launcher . | . . . . . . Special Weapon . | . . . . . . Impact Weapon . | . . . . . . Slashing Weapon . | . . . . . . Piercing Weapon . | . . . . . . Special Melee Weapon . | . . . . . . Unidentified Prototypes . | . . . . . . Parts Lost . | . . . . . . Power . | . . . . . . Propulsion . | . . . . . . Utility . | . . . . . . Weapon . | . . . . . . Highest Loss Streak . | . . . . . . Average Slot Usage (%) 91 | . 93 91 97 83 74 Engine 17 | . 20 18 18 16 8 Treads 18 | . 20 18 18 16 12 Device 8 | . 9 9 9 8 6 Storage 20 | . 14 26 26 25 20 Processor 2 | . 4 . . . . Energy Cannon 5 | . 8 . 1 8 6 Ballistic Gun 8 | . 6 10 14 . 7 Ballistic Cannon 7 | . 7 9 9 8 6 Naked Turns . | . . . . . . Heaviest Build 71 | 16 31 28 55 55 71 Greatest Support 40 | 40 40 40 40 40 40 Greatest Overweight (x) 18 | . . . 1 1 18 Average Overweight (x) . | . . . . 1 1 Largest Inventory Capacity . | . . . . . . Average Capacity . | . . . . . . Most Carried . | . . . . . . Average Carried . | . . . . . . Final Capacity . | . . . . . . Final Carried . | . . . . . . Class Distribution -------------------- 51% | Hacker-Mutant 38% | Hacker-Gunner 8% | Hacker-Skirmisher Dominant Class ---------------- Hacker-Mutant | -10/Materials Hacker-Mutant | -10/Mines Hacker-Gunner | -10/Exiles Hacker-Skirmisher | -9/Mines Hacker-Skirmisher | -8/Materials Resources | -11 -10 -10 -10 -9 -8 ----------- Run | Scr Mat Min Exi Min Mat Matter Collected 681 | 255 240 55 10 . 121 Remotely . | . . . . . . Salvage Created 2693 | . 855 348 . . 1490 Parts 88 | . 25 8 . . 55 Haulers Intercepted 2 | . 2 . . . . Recyclers Shooed 2 | . 1 . . . 1 Parts Field Recycled 176 | . 87 37 13 . 39 Retrieved Matter 709 | . 355 120 51 . 183 Parts Self-Destructed . | . . . . . . Prevented . | . . . . . . Kills | -11 -10 -10 -10 -9 -8 ------- Run | Scr Mat Min Exi Min Mat Combat Hostiles Destroyed 44 | . 8 13 . . 23 Guns 6 | . . 2 . . 4 Cannons 21 | . 7 11 . . 3 AOE 12 | . 1 . . . 11 Classes Destroyed 13 | . 7 2 . . 4 Worker 6 | . 3 . . . 3 Builder 4 | . 1 . . . 3 Hauler 2 | . 2 . . . . Recycler 8 | . 4 1 . . 3 Watcher 4 | . 2 . . . 2 Swarmer 4 | . 2 . . . 2 Grunt 21 | . 6 2 . . 13 Duelist 1 | . . . . . 1 Protector 1 | . . . . . 1 Sentry 5 | . . . . . 5 Demolisher 2 | . . 2 . . . Hunter 1 | . . . . . 1 Assembled 8 | . . 8 . . . Best Kill Streak 12 | . 5 8 . . 12 Combat Bots Only 8 | . 4 8 . . 6 Max Kills in Single Turn 4 | . 2 1 . . 4 Gunslinging . | . . . . . . Exploded 2 | . 1 . . . 2 Melee . | . . . . . . Uniques/NPCs Destroyed 1 | . . 1 . . . YI-UF0 (-10/Mines) Combat | -11 -10 -10 -10 -9 -8 -------- Run | Scr Mat Min Exi Min Mat Damage Taken 1379 | . 155 703 . . 521 Core 1081 | . 115 555 . . 411 Absorbed by Shields . | . . . . . . Redirected to Core 917 | . 97 463 . . 357 Core Remaining (%) 62 | 100 . . . 24 . Volleys Fired 116 | . 42 46 . . 28 Largest 5 | . 3 2 . . 5 Hottest 354 | . 168 55 . . 354 Shots Fired 278 | . 102 92 . . 84 Gun 105 | . 20 46 . . 39 Cannon 173 | . 82 46 . . 45 Launcher . | . . . . . . Special . | . . . . . . Kinetic 202 | . 44 92 . . 66 Thermal 26 | . 8 . . . 18 Explosive . | . . . . . . Electromagnetic 50 | . 50 . . . . Robot Hit Streak 49 | . 22 32 . . 49 Robot Miss Streak 2 | . 1 2 . . 1 Penetration Max . | . . . . . . Secondary Targets . | . . . . . . Shots Hit Robots 197 | . 66 85 . . 46 Core Hits 125 | . 26 36 . . 63 Critical Hits 1 | . . 1 . . . Critical Kills . | . . . . . . Critical Parts Destroyed 1 | . . 1 . . . Melee Attacks . | . . . . . . Impact . | . . . . . . Slashing . | . . . . . . Piercing . | . . . . . . Sneak Attacks . | . . . . . . Combat Hostiles . | . . . . . . Follow-up Attacks . | . . . . . . Damage Inflicted 4421 | . 1355 1095 . . 1971 Guns 789 | . 104 366 . . 319 Cannons 2378 | . 1071 729 . . 578 Explosions 1254 | . 180 . . . 1074 Melee . | . . . . . . Ramming . | . . . . . . Kinetic 1953 | . 348 1095 . . 510 Thermal 1745 | . 284 . . . 1461 Explosive . | . . . . . . Electromagnetic 723 | . 723 . . . . Impact . | . . . . . . Slashing . | . . . . . . Piercing . | . . . . . . Highest Corruption . | . . . . . . Average Corruption . | . . . . . . Corruption Purged . | . . . . . . Overload Shots . | . . . . . . Overflow Damage 49 | . 34 . . . 15 Projectiles 38 | . 34 . . . 4 Explosions 11 | . . . . . 11 Melee . | . . . . . . Knockbacks 16 | . 3 10 . . 3 Impact . | . . . . . . Kinetic 16 | . 3 10 . . 3 Secondary . | . . . . . . Self-Inflicted Damage 46 | . . . . . 46 Shots 5 | . . . . . 5 Rammed . | . . . . . . Targets Rammed . | . . . . . . Kicked . | . . . . . . Crushed . | . . . . . . Highest Temperature 508 | . 283 3 . . 508 Average Temperature 103 | . 86 3 . . 142 Received Heat Transfer 432 | . 123 156 . . 153 Effects 3 | . . . . . 3 Shutdowns 2 | . . . . . 2 Damage (minor) 1 | . . . . . 1 Siege Activations . | . . . . . . Robots Corrupted 1 | . 1 . . . . Combat Hostiles . | . . . . . . Parts Fried 5 | . 5 . . . . Impact Corruptions . | . . . . . . Robots Melted 5 | . . . . . 5 Combat Hostiles 5 | . . . . . 5 Parts Melted 35 | . 2 . . . 33 Heat Transferred 8234 | . 472 . . . 7762 Parts Sabotaged . | . . . . . . Parts Stolen . | . . . . . . Parts Stripped . | . . . . . . Power Chain Reactions 4 | . 4 . . . . Missiles Intercepted . | . . . . . . Alert | -11 -10 -10 -10 -9 -8 ------- Run | Scr Mat Min Exi Min Mat Peak Influence 655 | . 192 80 . . 655 Initial . | . . . . . . Average 80 | . 42 39 . . 291 Maximum Alert Level 2 | . . . . . 2 Low Security (%) 88 | 100 100 100 . 100 27 Level 1 6 | . . . . . 38 Level 2 5 | . . . . . 34 Level 3 . | . . . . . . Level 4 . | . . . . . . Level 5 . | . . . . . . High Security . | . . . . . . Max Security . | . . . . . . Squads Dispatched 4 | . . . . . 4 Investigation . | . . . . . . Extermination . | . . . . . . Reinforcement 2 | . . . . . 2 Assault 1 | . . . . . 1 Garrison 1 | . . . . . 1 Intercept . | . . . . . . Construction Impeded 2 | . . . . . 2 Haulers Reinforced . | . . . . . . Stealth | -11 -10 -10 -10 -9 -8 --------- Run | Scr Mat Min Exi Min Mat Distress Signals 3 | . . 1 . . 2 Communications Jammed . | . . . . . . Distress Signals . | . . . . . . Times Spotted 56 | . 13 17 . . 26 Peak Tracking Total 5 | . 2 4 . . 5 Tactical Retreats 2 | . . 2 . . . Traps | -11 -10 -10 -10 -9 -8 ------- Run | Scr Mat Min Exi Min Mat Traps Triggered 1 | . 1 . . . . Indirectly . | . . . . . . Trap Hack Attempts . | . . . . . . Triggered . | . . . . . . Disarmed . | . . . . . . Reprogrammed 13 | . 13 . . . . Reused 1 | . 1 . . . . Traps Extracted . | . . . . . . Installed . | . . . . . . Triggered 1 | . 1 . . . . Machines | -11 -10 -10 -10 -9 -8 ---------- Run | Scr Mat Min Exi Min Mat Machines Disabled 6 | . 2 . . . 4 Max in Single Turn 2 | . 1 . . . 2 Garrison Access 1 | . . . . . 1 Machines Sabotaged . | . . . . . . Garrisons Compromised . | . . . . . . Overloaded Fab Kills . | . . . . . . Fab Network Shutdowns . | . . . . . . Hacking | -11 -10 -10 -10 -9 -8 --------- Run | Scr Mat Min Exi Min Mat Machines Accessed 8 | . 7 . 1 . . Terminals 6 | . 6 . . . . Fabricators . | . . . . . . Repair Stations . | . . . . . . Recycling Units 1 | . 1 . . . . Scanalyzers . | . . . . . . Garrison Access . | . . . . . . Total Hacks 31 | . 30 . 1 . . Successful 26 | . 25 . 1 . . Failed 5 | . 5 . . . . Catastrophic . | . . . . . . Database Lockouts . | . . . . . . Manual 9 | . 8 . 1 . . Terminals 26 | . 26 . . . . Fabricators . | . . . . . . Repair Stations . | . . . . . . Recycling Units 4 | . 4 . . . . Scanalyzers . | . . . . . . Garrison Access . | . . . . . . Terminal Hacks 20 | . 19 . 1 . . Prototype ID Bank 1 | . 1 . . . . Branch Access Points 1 | . 1 . . . . Emergency Access Points 2 | . 2 . . . . Alert Level 2 | . 2 . . . . Locate Traps 3 | . 3 . . . . Reprogram Traps 4 | . 4 . . . . Surveillance Status 1 | . 1 . . . . Hauler Manifests 3 | . 3 . . . . Registered Components 1 | . 1 . . . . Zone Layout 1 | . 1 . . . . EX-Prototype ID Bank 1 | . . . 1 . . Fabricator Hacks . | . . . . . . Repair Station Hacks . | . . . . . . Recycling Unit Hacks 3 | . 3 . . . . Report Inventory 2 | . 2 . . . . Retrieve Components 1 | . 1 . . . . Scanalyzer . | . . . . . . Garrison Access Hacks . | . . . . . . Unauthorized Hacks 3 | . 3 . . . . Terminals 2 | . 2 . . . . Botnet 2 | . 2 . . . . Fabricators . | . . . . . . Repair Stations . | . . . . . . Recycling Units 1 | . 1 . . . . Reject 1 | . 1 . . . . Scanalyzers . | . . . . . . Garrison Access . | . . . . . . Data Cores Recovered . | . . . . . . Used . | . . . . . . Hacking Detections 4 | . 4 . . . . Full Trace Events . | . . . . . . Feedback Events . | . . . . . . Feedback Blocked . | . . . . . . Robot Schematics Acquired . | . . . . . . Robots Built . | . . . . . . Matter . | . . . . . . Time . | . . . . . . Total Robot Build Rating . | . . . . . . Part Schematics Acquired . | . . . . . . Parts Built . | . . . . . . Matter . | . . . . . . Time . | . . . . . . Total Part Build Rating . | . . . . . . Parts Repaired . | . . . . . . Time . | . . . . . . Parts Recycled . | . . . . . . Recycled Matter . | . . . . . . Retrieved Matter . | . . . . . . Retrieved Components 2 | . 2 . . . . Parts Scanalyzed . | . . . . . . Part Schematics Acquired . | . . . . . . Parts Damaged . | . . . . . . Bothacking | -11 -10 -10 -10 -9 -8 ------------ Run | Scr Mat Min Exi Min Mat Used RIF Installer . | . . . . . . Robots Hacked . | . . . . . . Non-combat . | . . . . . . Combat . | . . . . . . Robot Hacks Applied . | . . . . . . Relay Couplers Released 1 | . . . . . 1 Machine Destruction 1 | . . . . . 1 Robots Rewired . | . . . . . . Allies Hacked . | . . . . . . Hacks Repelled . | . . . . . . Allies | -11 -10 -10 -10 -9 -8 -------- Run | Scr Mat Min Exi Min Mat Total Allies 1 | . . 1 . . . Largest Group 1 | . . 1 . . . Highest-Rated Group 31 | . . 31 . . . Highest-Rated Ally 31 | . . 31 . . . Total Orders . | . . . . . . Ally Attacks 5 | . . 5 . . . Total Damage 62 | . . 62 . . . Kills 1 | . . 1 . . . Allies Corrupted . | . . . . . . Allies Melted . | . . . . . . Intel | -11 -10 -10 -10 -9 -8 ------- Run | Scr Mat Min Exi Min Mat Robot Analysis Total . | . . . . . . Derelict Logs Recovered 2 | . . 2 . . . Drone Launches . | . . . . . . Drone Recoveries . | . . . . . . Exploration | -11 -10 -10 -10 -9 -8 ------------- Run | Scr Mat Min Exi Min Mat Turns Passed 4233 | 89 1799 851 823 112 559 Spaces Moved 2252 | 52 1013 438 497 58 194 Core 10 | 7 . . . . 3 Treads 2242 | 45 1013 438 497 58 191 Legs . | . . . . . . Wheels . | . . . . . . Hover . | . . . . . . Flight . | . . . . . . Fastest Speed 50 | 50 160 160 160 180 180 Average Speed 164 | 145 160 160 163 180 198 Slowest Speed 950 | 160 160 160 180 180 950 Overloaded Moves . | . . . . . . Propulsion Burnouts . | . . . . . . Robots Hopped . | . . . . . . Cave-ins Triggered 1 | . . . . . 1 Exploration Rate (%) 52 | 4 95 84 78 36 18 Regions Visited 5 Branch Regions 3 Pre-discovered Areas . | . . . . . . Known Exits Taken 5 | 1 1 1 1 1 . Unknown Exits Taken . | . . . . . . Scrap Searched 1 | . . 1 . . . Spaces Dug . | . . . . . . Terrain Destroyed 143 | . 22 . . . 121 Melee . | . . . . . . Projectile 5 | . . . . . 5 AOE 138 | . 22 . . . 116 Terrain Rammed . | . . . . . . Walls Destroyed . | . . . . . . Machines Disabled . | . . . . . . Actions | -11 -10 -10 -10 -9 -8 --------- Run | Scr Mat Min Exi Min Mat Total 2558 | 61 1109 505 507 66 310 Wait 107 | . 18 18 . 9 62 Move 2247 | 51 1012 437 496 57 194 Hop . | . . . . . . Pick Up . | . . . . . . Fast Attach 40 | 10 13 2 5 . 10 Attach . | . . . . . . Detach . | . . . . . . Swap . | . . . . . . Drop 26 | . 14 . 6 . 6 Fire 116 | . 42 46 . . 28 Melee . | . . . . . . Ram . | . . . . . . Kick . | . . . . . . Crush . | . . . . . . Escape Stasis . | . . . . . . Rewire . | . . . . . . Trap . | . . . . . . Miscellaneous 22 | . 10 2 . . 10 Route ------- -11/Scrapyard -10/Materials (discovered 4 exits: *Mat x2 / *Min x2) -10/Mines (discovered 3 exits: *Mat x2 / *Exi) -10/Exiles -9/Mines -8/Materials History --------- Turn | Location | Event 1 | -11/Scrapyard | Upgraded with Power slot (x1) 1 | -11/Scrapyard | Upgraded with Propulsion slot (x1) 1 | -11/Scrapyard | Upgraded with Utility slot (x2) 1 | -11/Scrapyard | Upgraded with Weapon slot (x2) 3 | -11/Scrapyard | Identified exit to Materials 3 | -11/Scrapyard | Discovered exit to Materials (range 15) 90 | -11/Scrapyard | Entered Materials 309 | -10/Materials | Build established: Hacker-Gunner 352 | -10/Materials | Identified exit to Mines 400 | -10/Materials | Identified exit to Materials 400 | -10/Materials | Discovered exit to Materials (range 15) 732 | -10/Materials | Discovered exit to Materials (range 16) 1042 | -10/Materials | Build established: Hacker-Mutant 1889 | -10/Materials | Entered Mines 1891 | -10/Mines | Reached level 2 1897 | -10/Mines | Upgraded with Utility slot (x1) 1923 | -10/Mines | Learned Materials emergency access door positions 1932 | -10/Mines | YI-UF0 nonchalantly dropped a Grenade Launcher on the ground 1994 | -10/Mines | Assembled infested the area 2050 | -10/Mines | Learned Materials stockpile data 2088 | -10/Mines | Destroyed 8 combat bots 2252 | -10/Mines | Discovered exit to Materials (range 7) 2300 | -10/Mines | Discovered exit to Materials (range 7) 2384 | -10/Mines | Received a Mining Laser from a helpful Derelict 2543 | -10/Mines | Core integrity fell below 50% 2562 | -10/Mines | Destroyed YI-UF0 2734 | -10/Mines | Deemed a non-threat by the Exiles lab entrance 2734 | -10/Mines | Identified exit to Exiles 2734 | -10/Mines | Discovered exit to Exiles (range 5) 2740 | -10/Mines | Entered Exiles 2784 | -10/Exiles | Met 8R-AWN 2809 | -10/Exiles | Met EX-HEX 2904 | -10/Exiles | Met EX-DEC 2914 | -10/Exiles | Build established: Hacker-Gunner 2935 | -10/Exiles | Visited The Gauntlet 3208 | -10/Exiles | Identified exit to Mines 3208 | -10/Exiles | Discovered exit to Mines (range 14) 3313 | -10/Exiles | Met EX-BIN 3336 | -10/Exiles | Aligned with FarCom system 3337 | -10/Exiles | Given EX-Vault access code 3380 | -10/Exiles | Opened EX-Vault 3393 | -10/Exiles | Found Firepult 3432 | -10/Exiles | Warned to stay clear of 0b10 Research branches 3563 | -10/Exiles | Left Exiles lab with Firepult 3563 | -10/Exiles | Entered Mines 3565 | -9/Mines | Reached level 3 3569 | -9/Mines | Upgraded with Utility slot (x1) 3652 | -9/Mines | Identified exit to Materials 3652 | -9/Mines | Discovered exit to Materials (range 8) 3675 | -9/Mines | Entered Materials 3676 | -8/Materials | Core integrity fell below 50% 3677 | -8/Materials | Reached level 4 3677 | -8/Materials | Reached level 5 3677 | -8/Materials | Reached level 6 3683 | -8/Materials | Upgraded with Weapon slot (x3) 3878 | -8/Materials | Core integrity fell below 20% 3884 | -8/Materials | Reached level 7 4091 | -8/Materials | Garrison activated, responded to threat 4101 | -8/Materials | Reached level 8 4235 | -8/Materials | Crushed by falling debris 4235 | -8/Materials | Smashed by cave-in Last Messages --------------- 04209_ I-25 Savior destroyed. 04209_ G-50 Soldier critical meltdown. 04209_ Carbon-fiber Leg melted. 04210_ G-47 Trooper heat damages Imp. Heat Sink. 04210_ G-47 Trooper critical meltdown. 04210_ G-47 Trooper overheating. 04215_ Fusion Modulator explodes. 04216_ Imp. Heat Sink melted. 04216_ G-47 Trooper destroyed. 04216_ U-05 Engineer builds a Wall. 04226_ U-05 Engineer lays Concrete. 04227_ U-05 Engineer builds a Wall. 04232_ Heat Sink melted. 04232_ Lgt. Treads melted. 04232_ Beam Rifle melted. 04232_ Y-45 Defender destroyed. 04232_ U-05 Engineer lays Concrete. 04233_ U-05 Engineer builds a Wall. 04235_ The unstable cave ceiling collapses. 04235_ Crushed by falling debris. Map ----- +----------------------------------------------------+ | | | | | | | | | | | ?????????????????????????????????????????????????? | | ?????????????????????????????????????????????????? | | ?????????????????????????????????????????????????? | | ?????????????????[???????????????????????????????? | | ?????????????????????????????????????????????????? | | ?????????????????????????????????????????????????? | | ?????????????????????????????????????????????????? | | ?????????????????????????????????????????????????? | | ?????????????????????????????????????????????????? | | ?????????????????????????????????????????????????? | | ?????????????????????????????????????????????????? | | ?????????????????????????????????????????????????? | | ??????????????????????????##+##??????????????????? | | ????????????? ??????????? ???????????????????? | | ??????????????? ????????? ????????????????????? | | ???????????????##;???????? #????????????????????? | | ???????????????# ; ?????? #????????????????????? | | ???????????????# !]##### #????????????????????? | | ????????????????# [% ####?????????????????? | | ????????????????# ??????????????????? | | ?????????????????????# %@[#####?????????????????? | | ?????????????????????# =% #?????????????????? | | ????????????????????# %% #?????????????????? | | ????????????????????# ;#????????????????? | | ?????????????????####; ;#????????????????? | | ????????????"" ??+ t; ; #???????????????? | | ???????????""""??###a# ; #???????????????? | | ???????????"""" ???#u; ; #???????????????? | | ???????????"""" ???# # ; #???????????????? | | ????????????"" ?## #; ;; #???????????????? | | ?????????????? ### # ; ; ;;##???????????????? | | ???????????????? + # # #????????????????? | | ??????????###+#### # #u""" / #????????????????? | | ??????????# ## ### "G! #????????????????? | | ??????????# "" # " #????????????????? | | ??????????# T +%! * #????????????????? | | ??????????# % #*% """#????????????????? | | ??????????# ###### #=[ = """#????????????????? | | ????#####?## #######+# """#????????????????? | | ????# ?# # # #????????????????? | | ????# # # ##########????????????????? | | ????# + + #?????????????????????????? | | ????# # # #?????????????????????????? | | ????# #########?????????????????????????? | | ????# " ## # #??????????????????????????? | +----------------------------------------------------+ Best States ------------- Heat Dissipation 103 Energy Generation 21 Energy Capacity 405 Matter Stores 900 Matter Capacity 900 Sight Range 16 Terrain Scan Density 10 Armor Coverage 150 Resistance: KI 35 Resistance: TH 35 Resistance: EX 35 Resistance: EM 35 Resistance: I 35 Resistance: S 35 Resistance: P 35 Power Shielding 33 Weapon Shielding 33 Evasion (%) 40 Targeting Accuracy 5 Recoil Reduction 2 Offensive Hacking 20 Item Schematics ----------------- None Robot Schematics ------------------ None Fabricated ------------ Nothing Alien Tech Used ----------------- None Achievements -------------- None Challenges ------------ None RPGLIKE | -11 -10 -10 -10 -9 -8 --------- Run | Scr Mat Min Exi Min Mat Levels Raised 7 | . . 1 . 1 5 XP Earned 17548 | 6000 1120 1075 350 843 8160 XP Spent 14770 | 5980 . 1430 . 1550 5810 Upgrades 30 | 14 . 4 . 2 10 Power Slot 1 | 1 . . . . . Propulsion Slot 1 | 1 . . . . . Utility Slot 4 | 2 . 1 . 1 . Weapon Slot 5 | 2 . . . . 3 Core Integrity 2 | 2 . . . . . Heat Dissipation 13 | 2 . 3 . 1 7 Ranged Accuracy 4 | 4 . . . . . Protomatter Created 381 | . 67 9 . . 305 Integrity Restored 433 | . 175 27 . . 231 Core 373 | . 115 27 . . 231 Parts 60 | . 60 . . . . Protomatter Decayed 84 | . 6 11 . . 67 Game ------ Seed CorruptionCoreNullifier Manual? 0 Play Time 00:36:15 Cumulative 99.2 hours Start 2021.11.15 @ 17:37:51 End 2021.11.15 @ 18:11:54 Sessions 1 Manual Loads 0 Difficulty Explorer Special Mode Winter2019/RPGLIKE Game No. 27 Rogue 0 Adventurer 0 Explorer 27 Win Type - Total 4 Types 0/1/0/2/0/0/0/0/1 Lore% 50 Gallery% 44 Achievement% 47 Wizard Run 0 Options --------- ASCII 0 Keyboard 0 Movement Mouse Keybinds 0 Fullscreen 2 Font 18/SmallcapsGlow Map View 76x50 Tactical HUD 1 Map Filters NONE Filters NONE Steam 1 RUN: 7239b99f-3304-4e94-8c83-7367ecafe34c